[Event "IV Pullman Rapid 2022"]
[Site "Riga, Latvia"]
[Date "2022.02.19"]
[Round "3.4"]
[White "Kretainis, Kristaps"]
[Black "Tolmacevs, Artjoms"]
[Result "1-0"]
[TimeControl "600+5"]
[WhiteElo "2157"]
[BlackElo "1830"]

1. Nf3 {[%emt 00:12:32]} c5 {[%emt 00:00:01]} 2. c4 {[%emt 00:00:01]} Nc6
{[%emt 00:00:02]} 3. Nc3 {[%emt 00:00:02]} e5 {[%emt 00:00:02]} 4. e3 {[%emt
00:00:03]} f5 {[%emt 00:00:34]} 5. d4 {[%emt 00:00:02]} e4 {[%emt 00:00:19]} 6.
Ne5 {[%emt 00:00:01]} Nf6 {[%emt 00:00:18]} 7. f4 {[%emt 00:00:13]} d6 {[%emt
00:00:16]} 8. Nxc6 {[%emt 00:00:04]} bxc6 {[%emt 00:00:01]} 9. dxc5 {[%emt
00:00:12]} dxc5 {[%emt 00:00:02]} 10. Qxd8+ {[%emt 00:00:04]} Kxd8 {[%emt
00:00:02]} 11. b3 {[%emt 00:00:18]} Be7 {[%emt 00:00:13]} 12. Be2 {[%emt
00:00:11]} Kc7 {[%emt 00:00:04]} 13. Bb2 {[%emt 00:00:04]} Be6 {[%emt
00:00:12]} 14. O-O-O {[%emt 00:00:14]} Rhd8 {[%emt 00:01:02]} 15. Na4 {[%emt
00:00:01]} Rxd1+ {[%emt 00:00:50]} 16. Rxd1 {[%emt 00:00:08]} Rg8 {[%emt
00:00:19]} 17. Be5+ {[%emt 00:00:10]} Kc8 {[%emt 00:02:28]} 18. Bd6 {[%emt
00:00:01]} Bxd6 {[%emt 00:00:29]} 19. Rxd6 {[%emt 00:00:02]} Bd7 {[%emt
00:00:01]} 20. Nxc5 {[%emt 00:00:02]} Kc7 {[%emt 00:00:09]} 21. Rd2 {[%emt
00:00:25]} g5 {[%emt 00:00:12]} 22. g3 {[%emt 00:00:52]} gxf4 {[%emt 00:00:31]}
23. exf4 {[%emt 00:00:01]} Rg6 {[%emt 00:00:51]} 24. b4 {[%emt 00:01:12]} Rh6
{[%emt 00:00:08]} 25. Bd1 {[%emt 00:00:01]} Bc8 {[%emt 00:00:36]} 26. Kb2
{[%emt 00:00:03]} Rg6 {[%emt 00:00:19]} 27. Kc3 {[%emt 00:01:56]} h5 {[%emt
00:00:28]} 28. Kd4 {[%emt 00:00:24]} Ng4 {[%emt 00:01:01]} 29. Bxg4 {[%emt
00:00:08]} hxg4 {[%emt 00:00:03]} 30. Ke3 {[%emt 00:00:29]} Rh6 {[%emt
00:00:01]} 31. a4 {[%emt 00:00:09]} Rh8 {[%emt 00:00:33]} 32. a5 {[%emt
00:00:05]} a6 {[%emt 00:00:09]} 33. Nb3 {[%emt 00:01:03]} Be6 {[%emt 00:00:05]}
34. Rc2 {[%emt 00:00:26]} Rb8 {[%emt 00:00:21]} 35. Nc5 {[%emt 00:00:02]} Bc8
{[%emt 00:00:04]} 36. Rb2 {[%emt 00:00:08]} Bb7 {[%emt 00:00:04]} 37. Kf2
{[%emt 00:01:50]} Rh8 {[%emt 00:00:08]} 38. Kg2 {[%emt 00:00:01]} Bc8 {[%emt
00:00:07]} 39. Rd2 {[%emt 00:00:12]} Rh6 {[%emt 00:00:05]} 40. Rd1 {[%emt
00:00:08]} Rh8 {[%emt 00:00:02]} 41. Nb3 {[%emt 00:00:25]} Rh5 {[%emt
00:00:08]} 42. Rc1 {[%emt 00:00:11]} Be6 {[%emt 00:00:05]} 43. Nd4 {[%emt
00:00:08]} Bd7 {[%emt 00:00:05]} 44. b5 {[%emt 00:00:01]} c5 {[%emt 00:00:05]}
45. b6+ {[%emt 00:00:03]} Kb7 {[%emt 00:00:03]} 46. Nb3 {[%emt 00:00:01]} Bc6
{[%emt 00:00:04]} 47. Nxc5+ {[%emt 00:00:04]} Kc8 {[%emt 00:00:06]} 48. Kg1
{[%emt 00:00:01]} Rh6 {[%emt 00:00:03]} 49. Rd1 {[%emt 00:00:04]} e3 {[%emt
00:00:08]} 50. Re1 {[%emt 00:00:02]} Rd6 {[%emt 00:00:02]} 51. Rxe3 {[%emt
00:00:03]} Rd1+ {[%emt 00:00:01]} 52. Kf2 Rh1 {[%emt 00:00:04]} 53. Nxa6 {[%emt
00:00:05]} Rxh2+ {[%emt 00:00:01]} 54. Ke1 Rh1+ {[%emt 00:00:06]} 55. Kd2 Rh2+
{[%emt 00:00:02]} 56. Kc3 {[%emt 00:00:01]} Rf2 {[%emt 00:00:01]} 57. Nb4
{[%emt 00:00:02]} Be4 {[%emt 00:00:14]} 58. a6 {[%emt 00:00:04]} Rf3 {[%emt
00:00:09]} 59. Kd4 {[%emt 00:00:02]} Rf2 {[%emt 00:00:04]} 60. c5 {[%emt
00:00:06]} Rd2+ {[%emt 00:00:03]} 61. Kc4 {[%emt 00:00:06]} Rb2 {[%emt
00:00:02]} 62. c6 {[%emt 00:00:05]} Rb1 {[%emt 00:00:11]} 63. a7 {[%emt
00:00:03]} Bd3+ {[%emt 00:00:09]} 64. Rxd3 {[%emt 00:00:03]} Rxb4+ {[%emt
00:00:02]} 65. Kd5 {[%emt 00:00:07]} Rb5+ {[%emt 00:00:07]} 66. Kd6 {[%emt
00:00:01]} Rd5+ {[%emt 00:00:09]} 67. Kxd5 {[%clk 00:10:05]} {[%emt 00:00:01]}
1-0

[Event "IV Pullman Rapid 2022"]
[Site "Riga, Latvia"]
[Date "2022.02.19"]
[Round "4.1"]
[White "Shirov, Alexei"]
[Black "Berzina, Ilze"]
[Result "1-0"]
[TimeControl "600+5"]
[WhiteTitle "GM"]
[BlackTitle "WGM"]
[WhiteElo "2614"]
[BlackElo "2073"]

1. e4 {[%clk 00:10:08]} c6 {[%clk 00:10:08]} {[%emt 00:00:03]} 2. d4 {[%clk
00:10:08]} {[%emt 00:00:05]} d5 {[%clk 00:10:09]} {[%emt 00:00:03]} 3. e5
{[%clk 00:10:10]} {[%emt 00:00:03]} c5 {[%clk 00:10:07]} {[%emt 00:00:07]} 4.
Nf3 {[%clk 00:10:10]} {[%emt 00:00:05]} Nc6 {[%clk 00:10:03]} {[%emt 00:00:09]}
5. dxc5 {[%clk 00:09:29]} {[%emt 00:00:47]} Bg4 {[%clk 00:09:56]} {[%emt
00:00:12]} 6. Bb5 {[%clk 00:09:21]} {[%emt 00:00:13]} e6 {[%clk 00:09:43]}
{[%emt 00:00:19]} 7. b4 {[%clk 00:09:03]} {[%emt 00:00:23]} Nge7 {[%clk
00:08:51]} {[%emt 00:00:56]} 8. Nbd2 {[%clk 00:08:39]} {[%emt 00:00:29]} a6
{[%clk 00:08:47]} {[%emt 00:00:09]} 9. Ba4 {[%clk 00:08:37]} {[%emt 00:00:07]}
Ng6 {[%clk 00:08:38]} {[%emt 00:00:14]} 10. h3 {[%clk 00:08:25]} {[%emt
00:00:17]} Bxf3 {[%clk 00:08:24]} {[%emt 00:00:20]} 11. Nxf3 {[%clk 00:08:28]}
{[%emt 00:00:01]} b5 {[%clk 00:06:50]} {[%emt 00:01:39]} 12. cxb6 {[%clk
00:07:12]} {[%emt 00:01:21]} Bxb4+ {[%clk 00:06:46]} {[%emt 00:00:09]} 13. c3
{[%clk 00:05:23]} {[%emt 00:01:54]} Bxc3+ {[%clk 00:06:42]} {[%emt 00:00:08]}
14. Bd2 {[%clk 00:05:27]} Bxd2+ {[%clk 00:06:26]} {[%emt 00:00:21]} 15. Qxd2
{[%clk 00:05:31]} {[%emt 00:00:02]} Qxb6 {[%clk 00:06:28]} {[%emt 00:00:03]} 16.
O-O {[%clk 00:05:33]} {[%emt 00:00:02]} O-O {[%clk 00:06:02]} {[%emt 00:00:31]}
17. Rab1 {[%clk 00:05:37]} Qc7 {[%clk 00:05:52]} {[%emt 00:00:15]} 18. Rfc1
{[%clk 00:05:40]} {[%emt 00:00:02]} Nge7 {[%clk 00:05:49]} {[%emt 00:00:08]} 19.
Bxc6 {[%clk 00:05:40]} {[%emt 00:00:05]} Nxc6 {[%clk 00:05:44]} {[%emt
00:00:11]} 20. Qc2 {[%clk 00:05:32]} {[%emt 00:00:12]} Rfc8 {[%clk 00:03:49]}
{[%emt 00:02:01]} 21. Nd4 {[%clk 00:05:32]} {[%emt 00:00:05]} Nxd4 {[%clk
00:01:34]} {[%emt 00:02:20]} 22. Qxc7 {[%clk 00:05:35]} {[%emt 00:00:02]} Rxc7
{[%clk 00:01:38]} 23. Rxc7 {[%clk 00:05:36]} {[%emt 00:00:04]} Nb5 {[%clk
00:01:36]} {[%emt 00:00:07]} 24. Rb7 {[%clk 00:05:05]} {[%emt 00:00:35]} Kf8
{[%clk 00:01:20]} {[%emt 00:00:22]} 25. a4 {[%clk 00:05:07]} {[%emt 00:00:03]}
Nc3 {[%clk 00:01:21]} {[%emt 00:00:03]} 26. Rb8+ {[%clk 00:05:11]} {[%emt
00:00:02]} Rxb8 {[%clk 00:01:25]} {[%emt 00:00:01]} 27. Rxb8+ {[%clk 00:05:14]}
Ke7 {[%clk 00:01:29]} {[%emt 00:00:01]} 28. Rb7+ {[%clk 00:05:15]} {[%emt
00:00:04]} Ke8 {[%clk 00:01:31]} {[%emt 00:00:03]} 29. a5 {[%clk 00:05:18]}
{[%emt 00:00:02]} d4 {[%clk 00:00:46]} {[%emt 00:00:50]} 30. Kf1 {[%clk
00:05:19]} {[%emt 00:00:03]} f6 {[%clk 00:00:19]} {[%emt 00:00:32]} 31. exf6
{[%clk 00:04:57]} {[%emt 00:00:27]} gxf6 {[%clk 00:00:23]} {[%emt 00:00:01]} 32.
Rxh7 {[%clk 00:05:00]} {[%emt 00:00:03]} 1-0

[Event "IV Pullman Rapid 2022"]
[Site "Riga, Latvia"]
[Date "2022.02.19"]
[Round "4.2"]
[White "Rychagov, Nikita"]
[Black "Mustaps, Matiss"]
[Result "0-1"]
[TimeControl "600+5"]
[BlackTitle "FM"]
[WhiteElo "2071"]
[BlackElo "2393"]

1. e4 {[%clk 00:10:08]} {[%emt 00:00:01]} c5 {[%clk 00:10:09]} {[%emt
00:00:01]} 2. Nf3 {[%clk 00:10:12]} Nc6 {[%clk 00:10:09]} {[%emt 00:00:06]} 3.
d4 {[%clk 00:10:17]} {[%emt 00:00:01]} cxd4 {[%clk 00:10:13]} {[%emt 00:00:01]}
4. Nxd4 {[%clk 00:10:21]} g6 {[%clk 00:10:17]} 5. c4 {[%clk 00:10:24]} {[%emt
00:00:02]} Bg7 {[%clk 00:10:20]} {[%emt 00:00:01]} 6. Be3 {[%clk 00:10:28]} Nf6
{[%clk 00:10:24]} {[%emt 00:00:02]} 7. Nc3 {[%clk 00:10:33]} Ng4 {[%clk
00:10:28]} {[%emt 00:00:02]} 8. Qxg4 {[%clk 00:10:36]} {[%emt 00:00:02]} Nxd4
{[%clk 00:10:32]} {[%emt 00:00:01]} 9. Qd1 {[%clk 00:10:40]} {[%emt 00:00:01]}
Ne6 {[%clk 00:10:35]} {[%emt 00:00:02]} 10. Qd2 {[%clk 00:10:42]} {[%emt
00:00:03]} Qa5 {[%clk 00:10:34]} {[%emt 00:00:06]} 11. Rc1 {[%clk 00:10:41]}
{[%emt 00:00:06]} b6 {[%clk 00:10:35]} {[%emt 00:00:03]} 12. b3 {[%clk
00:10:07]} {[%emt 00:00:39]} f5 {[%clk 00:09:26]} {[%emt 00:01:14]} 13. exf5
{[%clk 00:09:17]} {[%emt 00:00:56]} gxf5 {[%clk 00:09:29]} {[%emt 00:00:01]} 14.
Nd5 {[%clk 00:09:06]} {[%emt 00:00:16]} Qxd2+ {[%clk 00:09:14]} {[%emt
00:00:19]} 15. Bxd2 {[%clk 00:09:06]} {[%emt 00:00:05]} Bb7 {[%clk 00:09:05]}
{[%emt 00:00:14]} 16. Be2 {[%clk 00:08:48]} {[%emt 00:00:22]} Rc8 {[%clk
00:07:04]} {[%emt 00:02:06]} 17. O-O {[%clk 00:08:42]} {[%emt 00:00:11]} Rg8
{[%clk 00:05:14]} {[%emt 00:01:55]} 18. Bh5+ {[%clk 00:08:28]} {[%emt
00:00:20]} Kd8 {[%clk 00:04:24]} {[%emt 00:00:55]} 19. Bf7 {[%clk 00:07:10]}
{[%emt 00:01:22]} Rf8 {[%clk 00:04:27]} {[%emt 00:00:03]} 20. Bxe6 {[%clk
00:07:14]} {[%emt 00:00:01]} dxe6 {[%clk 00:04:31]} {[%emt 00:00:01]} 21. Nf4
{[%clk 00:07:18]} Rc6 {[%clk 00:04:08]} {[%emt 00:00:28]} 22. Rfe1 {[%clk
00:05:19]} {[%emt 00:02:04]} e5 {[%clk 00:03:40]} {[%emt 00:00:32]} 23. Nd5
{[%clk 00:05:15]} {[%emt 00:00:09]} Rg6 {[%clk 00:03:39]} {[%emt 00:00:06]} 24.
Bb4 {[%clk 00:05:07]} {[%emt 00:00:13]} e6 {[%clk 00:02:44]} {[%emt 00:01:00]}
25. Bxf8 {[%clk 00:04:15]} {[%emt 00:00:58]} Bxf8 {[%clk 00:02:46]} {[%emt
00:00:02]} 26. g3 {[%clk 00:03:58]} {[%emt 00:00:22]} exd5 {[%clk 00:02:48]}
{[%emt 00:00:03]} 27. Rxe5 {[%clk 00:04:00]} {[%emt 00:00:03]} d4 {[%clk
00:01:08]} {[%emt 00:01:45]} 28. Rxf5 {[%clk 00:04:02]} {[%emt 00:00:08]} Bb4
{[%clk 00:00:59]} {[%emt 00:00:20]} 29. Rd1 {[%clk 00:03:53]} {[%emt 00:00:14]}
Bc3 {[%clk 00:00:59]} {[%emt 00:00:05]} 30. f3 {[%clk 00:03:55]} {[%emt
00:00:03]} Re6 {[%clk 00:00:51]} {[%emt 00:00:13]} 31. Kf2 {[%clk 00:03:50]}
{[%emt 00:00:10]} Ke7 {[%clk 00:00:49]} {[%emt 00:00:07]} 32. h4 {[%clk
00:03:45]} {[%emt 00:00:10]} h6 {[%clk 00:00:46]} {[%emt 00:00:08]} 33. g4
{[%clk 00:03:46]} {[%emt 00:00:04]} a5 {[%clk 00:00:33]} {[%emt 00:00:19]} 34.
g5 {[%clk 00:03:03]} {[%emt 00:00:48]} hxg5 {[%clk 00:00:37]} 35. hxg5 {[%clk
00:03:07]} Bb4 {[%clk 00:00:42]} 36. Kg3 {[%clk 00:03:05]} {[%emt 00:00:07]}
Bd6+ {[%clk 00:00:43]} {[%emt 00:00:04]} 37. Kh4 {[%clk 00:03:01]} {[%emt
00:00:10]} Re2 {[%clk 00:00:27]} {[%emt 00:00:21]} 38. g6 {[%clk 00:02:58]}
{[%emt 00:00:08]} Ke6 {[%clk 00:00:19]} {[%emt 00:00:13]} 39. Rf7 {[%clk
00:02:54]} {[%emt 00:00:09]} Rh2+ {[%clk 00:00:16]} {[%emt 00:00:09]} 40. Kg5
{[%clk 00:02:44]} {[%emt 00:00:15]} Be7+ {[%clk 00:00:13]} {[%emt 00:00:08]} 41.
Kf4 {[%clk 00:02:11]} {[%emt 00:00:38]} Bd6+ {[%clk 00:00:11]} {[%emt
00:00:08]} 42. Kg5 {[%clk 00:02:07]} {[%emt 00:00:09]} Rg2+ {[%clk 00:00:11]}
{[%emt 00:00:05]} 43. Kh6 {[%clk 00:02:10]} {[%emt 00:00:02]} Rh2 {[%clk
00:00:15]} {[%emt 00:00:01]} 44. Kg7 {[%clk 00:02:13]} {[%emt 00:00:01]} Be5+
{[%clk 00:00:18]} {[%emt 00:00:03]} 45. Rf6+ {[%clk 00:02:14]} {[%emt
00:00:04]} Bxf6+ {[%clk 00:00:22]} {[%emt 00:00:01]} 0-1

[Event "IV Pullman Rapid 2022"]
[Site "Riga, Latvia"]
[Date "2022.02.19"]
[Round "4.3"]
[White "Golubovskis, Maksims"]
[Black "Jazdanovs, Aleksandrs"]
[Result "1-0"]
[TimeControl "600+5"]
[WhiteTitle "FM"]
[WhiteElo "2185"]
[BlackElo "1993"]

1. e4 {[%clk 00:10:06]} {[%emt 00:00:03]} c5 {[%clk 00:10:08]} {[%emt
00:00:03]} 2. Nf3 {[%clk 00:09:51]} {[%emt 00:00:19]} d6 {[%clk 00:10:11]}
{[%emt 00:00:02]} 3. d4 {[%clk 00:09:43]} {[%emt 00:00:13]} cxd4 {[%clk
00:10:14]} {[%emt 00:00:02]} 4. Nxd4 {[%clk 00:09:47]} {[%emt 00:00:01]} Nf6
{[%clk 00:10:17]} {[%emt 00:00:01]} 5. f3 {[%clk 00:09:50]} {[%emt 00:00:02]}
e5 {[%clk 00:09:57]} {[%emt 00:00:26]} 6. Nb3 {[%clk 00:09:53]} {[%emt
00:00:02]} d5 {[%clk 00:09:58]} {[%emt 00:00:04]} 7. Bg5 {[%clk 00:09:57]}
{[%emt 00:00:02]} d4 {[%clk 00:09:05]} {[%emt 00:00:58]} 8. c3 {[%clk
00:09:59]} {[%emt 00:00:03]} Nc6 {[%clk 00:08:36]} {[%emt 00:00:33]} 9. Bb5
{[%clk 00:09:57]} {[%emt 00:00:07]} dxc3 {[%clk 00:07:03]} {[%emt 00:01:38]} 10.
Qxd8+ {[%clk 00:08:38]} {[%emt 00:01:25]} Kxd8 {[%clk 00:07:06]} {[%emt
00:00:02]} 11. Nxc3 {[%clk 00:05:51]} {[%emt 00:02:52]} Bb4 {[%clk 00:07:04]}
{[%emt 00:00:07]} 12. O-O-O+ {[%clk 00:05:36]} {[%emt 00:00:18]} Kc7 {[%clk
00:07:07]} {[%emt 00:00:04]} 13. Bxf6 {[%clk 00:03:37]} {[%emt 00:02:04]} Bxc3
{[%clk 00:07:08]} {[%emt 00:00:04]} 14. Bxg7 {[%clk 00:03:27]} {[%emt
00:00:15]} Rg8 {[%clk 00:07:12]} {[%emt 00:00:01]} 15. Bf6 {[%clk 00:02:51]}
{[%emt 00:00:42]} Rg6 {[%clk 00:06:52]} {[%emt 00:00:24]} 16. bxc3 {[%clk
00:02:10]} {[%emt 00:00:46]} Rxf6 {[%clk 00:06:55]} {[%emt 00:00:02]} 17. Rd5
{[%clk 00:01:56]} {[%emt 00:00:19]} Be6 {[%clk 00:05:38]} {[%emt 00:01:22]} 18.
Bxc6 {[%clk 00:01:46]} {[%emt 00:00:15]} bxc6 {[%clk 00:05:33]} {[%emt
00:00:10]} 19. Rxe5 {[%clk 00:01:46]} {[%emt 00:00:06]} Rg6 {[%clk 00:04:49]}
{[%emt 00:00:49]} 20. g3 {[%clk 00:01:37]} {[%emt 00:00:15]} Rb8 {[%clk
00:04:27]} {[%emt 00:00:26]} 21. Kc2 {[%clk 00:01:33]} {[%emt 00:00:08]} Rgg8
{[%clk 00:04:14]} {[%emt 00:00:18]} 22. f4 {[%clk 00:01:27]} {[%emt 00:00:11]}
Rgd8 {[%clk 00:03:58]} {[%emt 00:00:22]} 23. Nd4 {[%clk 00:01:20]} {[%emt
00:00:12]} 1-0

[Event "IV Pullman Rapid 2022"]
[Site "Riga, Latvia"]
[Date "2022.02.19"]
[Round "4.4"]
[White "Krivenko, Dion"]
[Black "Kretainis, Kristaps"]
[Result "0-1"]
[TimeControl "600+5"]
[WhiteElo "1944"]
[BlackElo "2157"]

1. e4 {[%emt 00:10:48]} b6 {[%emt 00:00:05]} 2. b3 {[%emt 00:00:32]} Bb7 {[%emt
00:00:02]} 3. Qe2 {[%emt 00:00:10]} c5 {[%emt 00:00:31]} 4. Bb2 {[%emt
00:00:03]} e6 {[%emt 00:00:05]} 5. Nc3 {[%emt 00:00:08]} Nf6 {[%emt 00:00:02]}
6. e5 {[%emt 00:00:02]} Nd5 {[%emt 00:00:02]} 7. Nxd5 {[%emt 00:00:21]} Bxd5
{[%emt 00:00:03]} 8. O-O-O {[%emt 00:00:15]} Be7 {[%emt 00:00:13]} 9. f4 {[%emt
00:00:02]} f5 {[%emt 00:00:11]} 10. Nf3 {[%emt 00:00:10]} O-O {[%emt 00:00:09]}
11. Rg1 {[%emt 00:00:08]} Qc7 {[%emt 00:00:17]} 12. h4 {[%emt 00:00:26]} a5
{[%emt 00:00:29]} 13. c4 {[%emt 00:00:57]} Bb7 {[%emt 00:00:46]} 14. a4 {[%emt
00:00:02]} Nc6 {[%emt 00:00:10]} 15. g4 {[%emt 00:00:49]} Nb4 {[%emt 00:00:54]}
16. Bh3 {[%emt 00:02:10]} Qc6 {[%emt 00:00:03]} 17. Rdf1 {[%emt 00:00:41]} Qe4
{[%emt 00:00:03]} 18. Qxe4 {[%emt 00:00:13]} Bxe4 {[%emt 00:00:04]} 19. Bc3
{[%emt 00:01:28]} Nd3+ {[%emt 00:00:02]} 20. Kd1 Nxf4 {[%emt 00:00:01]} 21. Bg2
{[%emt 00:00:26]} Nxg2 {[%emt 00:00:02]} 22. Rxg2 {[%emt 00:00:01]} fxg4 {[%clk
00:10:05]} {[%emt 00:00:01]} 0-1

[Event "IV Pullman Rapid 2022"]
[Site "Riga, Latvia"]
[Date "2022.02.19"]
[Round "5.1"]
[White "Kretainis, Kristaps"]
[Black "Shirov, Alexei"]
[Result "0-1"]
[TimeControl "600+5"]
[BlackTitle "GM"]
[WhiteElo "2157"]
[BlackElo "2614"]

1. e4 {[%clk 00:10:08]} {[%emt 00:00:02]} e5 {[%clk 00:09:53]} {[%emt
00:00:17]} 2. Nf3 {[%clk 00:10:11]} {[%emt 00:00:02]} Nc6 {[%clk 00:09:53]}
{[%emt 00:00:03]} 3. Bc4 {[%clk 00:10:14]} {[%emt 00:00:03]} Bc5 {[%clk
00:09:18]} {[%emt 00:00:40]} 4. d3 {[%clk 00:10:13]} {[%emt 00:00:06]} Nf6
{[%clk 00:09:20]} {[%emt 00:00:03]} 5. O-O {[%clk 00:10:15]} {[%emt 00:00:04]}
O-O {[%clk 00:09:22]} {[%emt 00:00:03]} 6. Re1 {[%clk 00:10:17]} {[%emt
00:00:03]} d6 {[%clk 00:08:24]} {[%emt 00:01:03]} 7. c3 {[%clk 00:10:20]}
{[%emt 00:00:03]} a6 {[%clk 00:08:23]} {[%emt 00:00:06]} 8. Bb3 {[%clk
00:10:18]} {[%emt 00:00:07]} Ba7 {[%clk 00:08:07]} {[%emt 00:00:20]} 9. Nbd2
{[%clk 00:10:17]} {[%emt 00:00:07]} Ng4 {[%clk 00:08:03]} {[%emt 00:00:09]} 10.
Re2 {[%clk 00:10:02]} {[%emt 00:00:21]} Kh8 {[%clk 00:08:04]} {[%emt 00:00:04]}
11. h3 {[%clk 00:09:52]} {[%emt 00:00:15]} f5 {[%clk 00:07:20]} {[%emt
00:00:49]} 12. exf5 {[%clk 00:09:42]} {[%emt 00:00:15]} Nxf2 {[%clk 00:07:05]}
{[%emt 00:00:20]} 13. Rxf2 {[%clk 00:09:44]} {[%emt 00:00:03]} Bxf2+ {[%clk
00:07:08]} {[%emt 00:00:02]} 14. Kxf2 {[%clk 00:09:47]} {[%emt 00:00:02]} Bxf5
{[%clk 00:07:12]} {[%emt 00:00:02]} 15. Qe2 {[%clk 00:09:04]} {[%emt 00:00:48]}
d5 {[%clk 00:07:15]} {[%emt 00:00:01]} 16. Kg1 {[%clk 00:09:00]} {[%emt
00:00:09]} Qd6 {[%clk 00:07:15]} {[%emt 00:00:05]} 17. Nf1 {[%clk 00:08:02]}
{[%emt 00:01:04]} e4 {[%clk 00:07:02]} {[%emt 00:00:18]} 18. dxe4 {[%clk
00:08:03]} {[%emt 00:00:04]} Bxe4 {[%clk 00:07:02]} {[%emt 00:00:05]} 19. Ng5
{[%clk 00:07:37]} {[%emt 00:00:31]} Rae8 {[%clk 00:06:55]} {[%emt 00:00:11]} 20.
Be3 {[%clk 00:06:53]} {[%emt 00:00:49]} d4 {[%clk 00:03:22]} {[%emt 00:03:38]}
21. cxd4 {[%clk 00:06:03]} {[%emt 00:00:56]} Nxd4 {[%clk 00:03:10]} {[%emt
00:00:16]} 22. Qc4 {[%clk 00:05:06]} {[%emt 00:01:03]} Nxb3 {[%clk 00:02:26]}
{[%emt 00:00:49]} 23. Nf7+ {[%clk 00:05:08]} {[%emt 00:00:03]} Rxf7 {[%clk
00:02:29]} {[%emt 00:00:02]} 24. Qxf7 {[%clk 00:05:12]} {[%emt 00:00:01]} Rf8
{[%clk 00:02:30]} {[%emt 00:00:03]} 25. Qxb3 {[%clk 00:05:16]} {[%emt
00:00:02]} Qg6 {[%clk 00:02:34]} {[%emt 00:00:01]} 26. g3 {[%clk 00:04:47]}
{[%emt 00:00:34]} Qf5 {[%clk 00:02:05]} {[%emt 00:00:33]} 27. Nd2 {[%clk
00:04:22]} {[%emt 00:00:31]} Bd5 {[%clk 00:02:03]} {[%emt 00:00:08]} 28. Qb4
{[%clk 00:04:06]} {[%emt 00:00:22]} Rf6 {[%clk 00:01:03]} {[%emt 00:01:04]} 29.
Rf1 {[%clk 00:04:02]} {[%emt 00:00:09]} Qxh3 {[%clk 00:01:03]} {[%emt
00:00:05]} 30. Qf8+ {[%clk 00:03:13]} {[%emt 00:00:54]} Rxf8 {[%clk 00:01:04]}
{[%emt 00:00:04]} 31. Rxf8+ {[%clk 00:03:17]} {[%emt 00:00:01]} Bg8 {[%clk
00:01:08]} {[%emt 00:00:01]} 32. Kf2 {[%clk 00:03:13]} {[%emt 00:00:09]} h6
{[%clk 00:01:04]} {[%emt 00:00:08]} 33. Nf3 {[%clk 00:03:09]} {[%emt 00:00:09]}
Kh7 {[%clk 00:00:55]} {[%emt 00:00:14]} 34. Rf4 {[%clk 00:02:54]} {[%emt
00:00:21]} Bxa2 {[%clk 00:00:36]} {[%emt 00:00:24]} 35. Bd4 {[%clk 00:02:18]}
{[%emt 00:00:42]} Bd5 {[%clk 00:00:33]} {[%emt 00:00:07]} 36. Bc3 {[%clk
00:02:07]} {[%emt 00:00:16]} Bxf3 {[%clk 00:00:33]} {[%emt 00:00:05]} 37. Rxf3
{[%clk 00:02:06]} {[%emt 00:00:07]} Qe6 {[%clk 00:00:36]} {[%emt 00:00:02]} 38.
Re3 {[%clk 00:02:02]} {[%emt 00:00:09]} Qf7+ {[%clk 00:00:36]} {[%emt
00:00:04]} 39. Rf3 {[%clk 00:02:04]} {[%emt 00:00:04]} Qd5 {[%clk 00:00:37]}
{[%emt 00:00:03]} 40. Re3 {[%clk 00:02:03]} {[%emt 00:00:06]} b5 {[%clk
00:00:39]} {[%emt 00:00:03]} 41. Re7 {[%clk 00:01:54]} {[%emt 00:00:14]} Qc5+
{[%clk 00:00:43]} {[%emt 00:00:02]} 0-1